[Event "*** Titled Tuesday Blitz"]
[Site "Chess.com"]
[Date "2021.03.30"]
[Round "3"]
[White "suyu28"]
[Black "NoboaKevin1999"]
[Result "0-1"]
[WhiteElo "2601"]
[BlackElo "2439"]
[TimeControl "180+1"]
[EndTime "10:28:32 PDT"]
[Termination "NoboaKevin1999 won on time"]

1. e4 {[%clk 0:02:59.6]} 1... e6 {[%clk 0:02:54.1]} 2. Nf3 {[%clk 0:02:59.6]}
2... d5 {[%clk 0:02:52.9]} 3. exd5 {[%clk 0:02:58.5]} 3... exd5 {[%clk
0:02:53.8]} 4. d4 {[%clk 0:02:59]} 4... Nc6 {[%clk 0:02:53.5]} 5. Be2 {[%clk
0:02:58.8]} 5... Bd6 {[%clk 0:02:53.4]} 6. O-O {[%clk 0:02:58.8]} 6... Nge7
{[%clk 0:02:53.5]} 7. c4 {[%clk 0:02:58.7]} 7... dxc4 {[%clk 0:02:52.4]} 8. Nc3
{[%clk 0:02:55]} 8... O-O {[%clk 0:02:52.1]} 9. h3 {[%clk 0:02:51.6]} 9... Na5
{[%clk 0:02:48.9]} 10. d5 {[%clk 0:02:47.3]} 10... Bf5 {[%clk 0:02:43.6]} 11.
Be3 {[%clk 0:02:45.3]} 11... c6 {[%clk 0:02:33.9]} 12. dxc6 {[%clk 0:02:34.8]}
12... Nexc6 {[%clk 0:02:34.8]} 13. Rc1 {[%clk 0:02:07.9]} 13... Rc8 {[%clk
0:02:33.6]} 14. Nd4 {[%clk 0:01:55.5]} 14... Nxd4 {[%clk 0:02:30.6]} 15. Bxd4
{[%clk 0:01:54.8]} 15... Bc5 {[%clk 0:02:18.4]} 16. Bxc5 {[%clk 0:01:52.5]}
16... Rxc5 {[%clk 0:02:17.5]} 17. Qa4 {[%clk 0:01:50.9]} 17... Qg5 {[%clk
0:01:57.1]} 18. Kh1 {[%clk 0:01:37.1]} 18... Bd3 {[%clk 0:01:40.3]} 19. Bxd3
{[%clk 0:01:30.6]} 19... cxd3 {[%clk 0:01:39.7]} 20. b4 {[%clk 0:01:31]} 20...
d2 {[%clk 0:01:28.8]} 21. Rc2 {[%clk 0:01:25.5]} 21... Rxc3 {[%clk 0:00:18.7]}
22. Rxc3 {[%clk 0:01:24.1]} 22... Nc6 {[%clk 0:00:18]} 23. Rd3 {[%clk
0:01:19.3]} 23... Rd8 {[%clk 0:00:13.8]} 24. f4 {[%clk 0:00:38.7]} 24... Qe7
{[%clk 0:00:11.8]} 25. Rxd8+ {[%clk 0:00:35]} 25... Qxd8 {[%clk 0:00:11.7]} 26.
b5 {[%clk 0:00:35.2]} 26... Ne7 {[%clk 0:00:09.7]} 27. Rd1 {[%clk 0:00:35]}
27... Nf5 {[%clk 0:00:07]} 28. Qb3 {[%clk 0:00:19.3]} 28... h5 {[%clk
0:00:03.7]} 29. Qc3 {[%clk 0:00:18.1]} 29... h4 {[%clk 0:00:02.3]} 30. Qxd2
{[%clk 0:00:17.5]} 30... Ng3+ {[%clk 0:00:02.6]} 31. Kh2 {[%clk 0:00:17.3]}
31... Qxd2 {[%clk 0:00:02.3]} 0-1

[Event "*** Titled Tuesday Blitz"]
[Site "Chess.com"]
[Date "2021.03.30"]
[Round "3"]
[White "Rodalquilar"]
[Black "djano"]
[Result "0-1"]
[WhiteElo "2642"]
[BlackElo "2446"]
[TimeControl "180+1"]
[EndTime "10:28:35 PDT"]
[Termination "djano won on time"]

1. d4 {[%clk 0:03:00.9]} 1... Nf6 {[%clk 0:02:59.2]} 2. Bf4 {[%clk 0:03:01]}
2... g6 {[%clk 0:02:51.3]} 3. e3 {[%clk 0:03:01.2]} 3... Bg7 {[%clk 0:02:48.7]}
4. Nf3 {[%clk 0:03:01.6]} 4... d6 {[%clk 0:02:47.6]} 5. Be2 {[%clk 0:03:01.4]}
5... c5 {[%clk 0:02:45.6]} 6. O-O {[%clk 0:03:01]} 6... Nh5 {[%clk 0:02:40.4]}
7. Bg5 {[%clk 0:03:00.8]} 7... h6 {[%clk 0:02:40.6]} 8. Bh4 {[%clk 0:03:01.1]}
8... g5 {[%clk 0:02:40.5]} 9. Nfd2 {[%clk 0:02:56.1]} 9... Nf4 {[%clk 0:02:33]}
10. exf4 {[%clk 0:02:56]} 10... gxh4 {[%clk 0:02:33]} 11. Nb3 {[%clk 0:02:19.1]}
11... cxd4 {[%clk 0:02:26.4]} 12. Bb5+ {[%clk 0:02:19.2]} 12... Nc6 {[%clk
0:02:23.1]} 13. Qf3 {[%clk 0:01:52.4]} 13... Bd7 {[%clk 0:02:15.2]} 14. N1d2
{[%clk 0:01:49.1]} 14... h3 {[%clk 0:02:02.2]} 15. g3 {[%clk 0:01:47.2]} 15...
Qb6 {[%clk 0:01:57]} 16. Bd3 {[%clk 0:01:46.7]} 16... h5 {[%clk 0:01:48.7]} 17.
Rfe1 {[%clk 0:01:43.7]} 17... O-O-O {[%clk 0:01:35.8]} 18. a4 {[%clk 0:01:42.1]}
18... Bg4 {[%clk 0:01:27.6]} 19. Qe4 {[%clk 0:01:37]} 19... d5 {[%clk
0:01:21.1]} 20. Qh1 {[%clk 0:01:32.9]} 20... h4 {[%clk 0:01:12.9]} 21. a5 {[%clk
0:01:32.6]} 21... Qc7 {[%clk 0:01:11.5]} 22. a6 {[%clk 0:01:32.9]} 22... b6
{[%clk 0:01:10.3]} 23. f3 {[%clk 0:01:23.7]} 23... hxg3 {[%clk 0:01:06.9]} 24.
hxg3 {[%clk 0:01:22.7]} 24... h2+ {[%clk 0:01:00.8]} 25. Kf2 {[%clk 0:01:22.9]}
25... Bd7 {[%clk 0:00:53.9]} 26. Qg2 {[%clk 0:01:22.8]} 26... e5 {[%clk
0:00:48.7]} 27. fxe5 {[%clk 0:01:22.3]} 27... Nxe5 {[%clk 0:00:47.3]} 28. Rh1
{[%clk 0:01:22.2]} 28... Bh6 {[%clk 0:00:34]} 29. Nf1 {[%clk 0:00:52.9]} 29...
Nxd3+ {[%clk 0:00:30]} 30. cxd3 {[%clk 0:00:46.5]} 30... Qc2+ {[%clk 0:00:29.8]}
31. Nfd2 {[%clk 0:00:36.7]} 31... Bxd2 {[%clk 0:00:29.9]} 32. Kf1 {[%clk
0:00:33.7]} 32... Qxd3+ {[%clk 0:00:27.7]} 33. Qe2 {[%clk 0:00:29.3]} 33... Bh3+
{[%clk 0:00:27.3]} 34. Kf2 {[%clk 0:00:29.9]} 34... Be3+ {[%clk 0:00:26]} 35.
Ke1 {[%clk 0:00:30.4]} 35... Qxe2+ {[%clk 0:00:26]} 36. Kxe2 {[%clk 0:00:30.7]}
36... Bg2 {[%clk 0:00:26.7]} 37. Kd3 {[%clk 0:00:26.7]} 37... Bxh1 {[%clk
0:00:25.8]} 38. Rxh1 {[%clk 0:00:27.6]} 38... Kd7 {[%clk 0:00:26.2]} 39. Na1
{[%clk 0:00:25.1]} 39... Rdg8 {[%clk 0:00:23.8]} 40. g4 {[%clk 0:00:24.9]} 40...
f5 {[%clk 0:00:24.4]} 41. Nc2 {[%clk 0:00:24.3]} 41... fxg4 {[%clk 0:00:24.4]}
42. f4 {[%clk 0:00:24.9]} 42... g3 {[%clk 0:00:24.4]} 0-1

[Event "*** Titled Tuesday Blitz"]
[Site "Chess.com"]
[Date "2021.03.30"]
[Round "3"]
[White "Sergey85Rodchenkov"]
[Black "Fy_Rakotomaharo"]
[Result "0-1"]
[WhiteElo "2507"]
[BlackElo "2715"]
[TimeControl "180+1"]
[EndTime "10:28:36 PDT"]
[Termination "Fy_Rakotomaharo won by resignation"]

1. e4 {[%clk 0:03:00.9]} 1... c5 {[%clk 0:02:59.9]} 2. Nf3 {[%clk 0:03:00.5]}
2... d6 {[%clk 0:02:59.3]} 3. d4 {[%clk 0:03:00.5]} 3... cxd4 {[%clk 0:03:00.2]}
4. Nxd4 {[%clk 0:03:00.9]} 4... Nf6 {[%clk 0:03:00.8]} 5. Nc3 {[%clk 0:03:01.1]}
5... a6 {[%clk 0:03:00.8]} 6. Bc4 {[%clk 0:03:01.3]} 6... e6 {[%clk 0:03:00.9]}
7. Bb3 {[%clk 0:03:01.4]} 7... Nbd7 {[%clk 0:03:01.6]} 8. f4 {[%clk 0:03:01.1]}
8... Nc5 {[%clk 0:03:01.3]} 9. f5 {[%clk 0:03:01.5]} 9... Be7 {[%clk 0:02:53.7]}
10. Qf3 {[%clk 0:03:01]} 10... O-O {[%clk 0:02:52.8]} 11. Be3 {[%clk 0:03:00.5]}
11... Bd7 {[%clk 0:02:50.7]} 12. g4 {[%clk 0:03:00]} 12... Nxb3 {[%clk
0:02:46.4]} 13. axb3 {[%clk 0:02:59.6]} 13... e5 {[%clk 0:02:47]} 14. Nde2
{[%clk 0:02:59.1]} 14... Bc6 {[%clk 0:02:35.8]} 15. Ng3 {[%clk 0:02:59.1]} 15...
d5 {[%clk 0:02:34.9]} 16. exd5 {[%clk 0:02:53.3]} 16... Nxd5 {[%clk 0:02:34.6]}
17. Nce4 {[%clk 0:02:43.5]} 17... Nxe3 {[%clk 0:02:08]} 18. Qxe3 {[%clk
0:02:42.3]} 18... Bh4 {[%clk 0:02:08.6]} 19. O-O {[%clk 0:02:41.3]} 19... Bxg3
{[%clk 0:01:36.7]} 20. hxg3 {[%clk 0:02:29.3]} 20... Qd5 {[%clk 0:01:32]} 21.
Rae1 {[%clk 0:02:27.9]} 21... Rad8 {[%clk 0:01:28.1]} 22. f6 {[%clk 0:02:16.9]}
22... Qxe4 {[%clk 0:01:22.2]} 23. Qxe4 {[%clk 0:02:16.5]} 23... Bxe4 {[%clk
0:01:23.1]} 24. Rxe4 {[%clk 0:02:16.9]} 24... Rfe8 {[%clk 0:01:19.2]} 25. fxg7
{[%clk 0:02:14.9]} 25... Kxg7 {[%clk 0:01:19]} 26. Rfe1 {[%clk 0:01:56.8]} 26...
Rd2 {[%clk 0:01:09.5]} 27. R1e2 {[%clk 0:01:57.1]} 27... Rxe2 {[%clk 0:01:09.3]}
28. Rxe2 {[%clk 0:01:56.9]} 28... Kf6 {[%clk 0:01:05.4]} 29. Kf2 {[%clk
0:01:57]} 29... Kg5 {[%clk 0:01:02]} 30. Re4 {[%clk 0:01:53.8]} 30... f6 {[%clk
0:01:02.2]} 31. Kf3 {[%clk 0:01:46.7]} 31... Rc8 {[%clk 0:00:56.6]} 32. c3
{[%clk 0:01:45.7]} 32... Rd8 {[%clk 0:00:55.3]} 33. Rc4 {[%clk 0:01:43.4]} 33...
Rd3+ {[%clk 0:00:43.8]} 34. Kf2 {[%clk 0:01:38.6]} 34... Rd2+ {[%clk 0:00:43.4]}
35. Ke3 {[%clk 0:01:38.6]} 35... Rxb2 {[%clk 0:00:42]} 36. b4 {[%clk 0:01:39]}
36... h5 {[%clk 0:00:25.1]} 37. gxh5 {[%clk 0:01:37.7]} 37... Kxh5 {[%clk
0:00:26]} 38. Rc7 {[%clk 0:01:35.4]} 38... Rc2 {[%clk 0:00:24.9]} 39. Ke4 {[%clk
0:01:29.8]} 39... Kg6 {[%clk 0:00:21.7]} 40. c4 {[%clk 0:01:20.4]} 40... Rc3
{[%clk 0:00:20.3]} 41. g4 {[%clk 0:01:19.9]} 41... b5 {[%clk 0:00:19.2]} 42. c5
{[%clk 0:01:19]} 42... Rc4+ {[%clk 0:00:19.7]} 43. Kd5 {[%clk 0:01:19.1]} 43...
Rxg4 {[%clk 0:00:19.9]} 44. c6 {[%clk 0:01:15.6]} 44... Rxb4 {[%clk 0:00:20.1]}
45. Ra7 {[%clk 0:01:13.6]} 45... Rc4 {[%clk 0:00:20.5]} 46. Rxa6 {[%clk
0:01:13.4]} 46... e4 {[%clk 0:00:21]} 47. Rb6 {[%clk 0:01:11.3]} 47... e3 {[%clk
0:00:19.9]} 48. Rxb5 {[%clk 0:01:11.5]} 48... Rc1 {[%clk 0:00:12]} 49. Rb2
{[%clk 0:01:04.9]} 49... Kf5 {[%clk 0:00:11]} 50. Kd4 {[%clk 0:01:01]} 50... Kf4
{[%clk 0:00:10.2]} 51. Rh2 {[%clk 0:00:48.9]} 51... Rxc6 {[%clk 0:00:07.3]} 52.
Rh4+ {[%clk 0:00:49]} 52... Kg3 {[%clk 0:00:07.8]} 53. Rh6 {[%clk 0:00:46.2]}
53... e2 {[%clk 0:00:06.9]} 54. Rh1 {[%clk 0:00:45.3]} 54... Kf2 {[%clk
0:00:06.9]} 55. Rh2+ {[%clk 0:00:45.3]} 55... Kf1 {[%clk 0:00:07.3]} 0-1

[Event "*** Titled Tuesday Blitz"]
[Site "Chess.com"]
[Date "2021.03.30"]
[Round "3"]
[White "Leonid_Starozhilov"]
[Black "WPWPWP-2015"]
[Result "1-0"]
[WhiteElo "2704"]
[BlackElo "2450"]
[TimeControl "180+1"]
[EndTime "10:28:36 PDT"]
[Termination "Leonid_Starozhilov won on time"]

1. e4 {[%clk 0:03:00.9]} 1... e5 {[%clk 0:02:58.8]} 2. Nf3 {[%clk 0:03:01.2]}
2... Nf6 {[%clk 0:02:57.8]} 3. Nc3 {[%clk 0:02:59.7]} 3... Bb4 {[%clk
0:02:56.3]} 4. Bd3 {[%clk 0:02:57.9]} 4... O-O {[%clk 0:02:53.8]} 5. O-O {[%clk
0:02:58.2]} 5... Nc6 {[%clk 0:02:44.4]} 6. a3 {[%clk 0:02:51.5]} 6... Be7 {[%clk
0:02:36.5]} 7. b4 {[%clk 0:02:48.9]} 7... a6 {[%clk 0:02:34.5]} 8. Nd5 {[%clk
0:02:46]} 8... Nxd5 {[%clk 0:02:25.7]} 9. exd5 {[%clk 0:02:45.9]} 9... Nd4
{[%clk 0:02:25.8]} 10. Nxd4 {[%clk 0:02:36]} 10... exd4 {[%clk 0:02:23.1]} 11.
Bb2 {[%clk 0:02:36.3]} 11... Bf6 {[%clk 0:02:22.5]} 12. d6 {[%clk 0:02:36.7]}
12... cxd6 {[%clk 0:02:17.3]} 13. Qg4 {[%clk 0:02:36.1]} 13... g6 {[%clk
0:02:02.6]} 14. Bxd4 {[%clk 0:02:27]} 14... Be5 {[%clk 0:01:58.1]} 15. Bc3
{[%clk 0:02:02.7]} 15... Qf6 {[%clk 0:01:50.8]} 16. Rae1 {[%clk 0:01:55]} 16...
a5 {[%clk 0:01:42.3]} 17. b5 {[%clk 0:01:44.9]} 17... Bxc3 {[%clk 0:01:30.4]}
18. dxc3 {[%clk 0:01:45.8]} 18... b6 {[%clk 0:01:30.4]} 19. Re3 {[%clk
0:01:39.9]} 19... Rd8 {[%clk 0:01:03.1]} 20. Rfe1 {[%clk 0:00:55.1]} 20... Bb7
{[%clk 0:00:56.8]} 21. Re7 {[%clk 0:00:55.1]} 21... Bd5 {[%clk 0:00:53.1]} 22.
Rxd7 {[%clk 0:00:38]} 22... Qxc3 {[%clk 0:00:52]} 23. Rde7 {[%clk 0:00:23.2]}
23... Qf6 {[%clk 0:00:46.2]} 24. h4 {[%clk 0:00:19.5]} 24... Be6 {[%clk
0:00:36.5]} 25. R1xe6 {[%clk 0:00:18.7]} 25... fxe6 {[%clk 0:00:36.8]} 26. Rxe6
{[%clk 0:00:18.9]} 26... Qg7 {[%clk 0:00:22.7]} 27. Bxg6 {[%clk 0:00:15.2]}
27... Kh8 {[%clk 0:00:18.2]} 28. h5 {[%clk 0:00:12.5]} 28... Rg8 {[%clk
0:00:17.2]} 29. g3 {[%clk 0:00:07.5]} 29... Raf8 {[%clk 0:00:15.4]} 30. Rxd6
{[%clk 0:00:06.5]} 30... Qa1+ {[%clk 0:00:09.8]} 31. Kg2 {[%clk 0:00:06.3]}
31... Qe5 {[%clk 0:00:09.1]} 32. Re6 {[%clk 0:00:05.9]} 32... Qc5 {[%clk
0:00:05.3]} 33. Qe2 {[%clk 0:00:06.6]} 33... hxg6 {[%clk 0:00:04.2]} 34. hxg6
{[%clk 0:00:07.5]} 34... Rg7 {[%clk 0:00:04.1]} 35. Re5 {[%clk 0:00:07.7]} 35...
Qd6 {[%clk 0:00:03.3]} 36. Rh5+ {[%clk 0:00:07.9]} 36... Kg8 {[%clk 0:00:03.5]}
37. Qc4+ {[%clk 0:00:08.6]} 37... Rff7 {[%clk 0:00:03.5]} 38. gxf7+ {[%clk
0:00:09.1]} 38... Rxf7 {[%clk 0:00:03.5]} 39. Rf5 {[%clk 0:00:09]} 1-0

[Event "*** Titled Tuesday Blitz"]
[Site "Chess.com"]
[Date "2021.03.30"]
[Round "3"]
[White "MIJuanReyesRosa"]
[Black "viktorgen2021"]
[Result "0-1"]
[WhiteElo "2107"]
[BlackElo "2337"]
[TimeControl "180+1"]
[EndTime "10:28:37 PDT"]
[Termination "viktorgen2021 won on time"]

1. d4 {[%clk 0:02:59.9]} 1... Nf6 {[%clk 0:02:59.7]} 2. Nf3 {[%clk 0:02:59.6]}
2... e6 {[%clk 0:03:00.1]} 3. c4 {[%clk 0:02:59.7]} 3... b6 {[%clk 0:02:58.5]}
4. a3 {[%clk 0:02:59.2]} 4... Bb7 {[%clk 0:02:58]} 5. Nc3 {[%clk 0:02:58.9]}
5... g6 {[%clk 0:02:55.6]} 6. d5 {[%clk 0:02:53.5]} 6... Bg7 {[%clk 0:02:50.8]}
7. e4 {[%clk 0:02:52.7]} 7... d6 {[%clk 0:02:50.4]} 8. Bd3 {[%clk 0:02:47.4]}
8... e5 {[%clk 0:02:49.8]} 9. Bg5 {[%clk 0:02:44.5]} 9... O-O {[%clk 0:02:48.7]}
10. Qd2 {[%clk 0:02:44.6]} 10... Nbd7 {[%clk 0:02:47.3]} 11. b4 {[%clk
0:02:43.9]} 11... a5 {[%clk 0:02:45]} 12. O-O {[%clk 0:02:44]} 12... Qc8 {[%clk
0:02:28.2]} 13. Nb5 {[%clk 0:02:42.9]} 13... Kh8 {[%clk 0:02:26.7]} 14. Rac1
{[%clk 0:02:41.6]} 14... Ng8 {[%clk 0:02:25.6]} 15. Be3 {[%clk 0:02:26.7]} 15...
f5 {[%clk 0:02:19.7]} 16. Ng5 {[%clk 0:01:57]} 16... f4 {[%clk 0:02:16.1]} 17.
Bxb6 {[%clk 0:01:56.8]} 17... Nxb6 {[%clk 0:01:55.9]} 18. c5 {[%clk 0:01:56.7]}
18... dxc5 {[%clk 0:01:50.9]} 19. Ne6 {[%clk 0:01:13.6]} 19... Rf7 {[%clk
0:01:41.1]} 20. Rxc5 {[%clk 0:01:09.4]} 20... Bf8 {[%clk 0:01:26.5]} 21. Rxc7
{[%clk 0:00:50.1]} 21... Rxc7 {[%clk 0:01:22.4]} 22. Nbxc7 {[%clk 0:00:50.1]}
22... Ra7 {[%clk 0:01:11.6]} 23. Rc1 {[%clk 0:00:49.4]} 23... axb4 {[%clk
0:00:53.1]} 24. Qb2 {[%clk 0:00:46.5]} 24... Bd6 {[%clk 0:00:37.2]} 25. axb4
{[%clk 0:00:42.4]} 25... Qd7 {[%clk 0:00:29.4]} 26. Nb5 {[%clk 0:00:37.8]} 26...
Ra8 {[%clk 0:00:28.7]} 27. Nbc7 {[%clk 0:00:24.9]} 27... Rc8 {[%clk 0:00:25.9]}
28. Bb5 {[%clk 0:00:17.3]} 28... Qe7 {[%clk 0:00:25.2]} 29. h4 {[%clk 0:00:10]}
29... Nf6 {[%clk 0:00:23.9]} 30. h5 {[%clk 0:00:09]} 30... gxh5 {[%clk 0:00:23]}
31. Ng5 {[%clk 0:00:07.4]} 31... Rg8 {[%clk 0:00:22.3]} 32. Nce6 {[%clk
0:00:06]} 32... h6 {[%clk 0:00:18.8]} 33. Nf3 {[%clk 0:00:04.4]} 33... Ng4
{[%clk 0:00:14.7]} 34. Nh4 {[%clk 0:00:04]} 34... Qxh4 {[%clk 0:00:11.4]} 35. g3
{[%clk 0:00:01.4]} 35... fxg3 {[%clk 0:00:10.7]} 0-1

[Event "*** Titled Tuesday Blitz"]
[Site "Chess.com"]
[Date "2021.03.30"]
[Round "3"]
[White "LastHeroJr"]
[Black "Spriteball"]
[Result "1-0"]
[WhiteElo "2565"]
[BlackElo "2376"]
[TimeControl "180+1"]
[EndTime "10:28:38 PDT"]
[Termination "LastHeroJr won by resignation"]

1. e4 {[%clk 0:03:00.9]} 1... e5 {[%clk 0:02:59.5]} 2. Nf3 {[%clk 0:03:00.9]}
2... Nc6 {[%clk 0:02:59.8]} 3. Bc4 {[%clk 0:03:00.8]} 3... Nf6 {[%clk
0:03:00.1]} 4. d3 {[%clk 0:03:00.5]} 4... Be7 {[%clk 0:03:00.1]} 5. O-O {[%clk
0:03:00.3]} 5... O-O {[%clk 0:02:59.2]} 6. Re1 {[%clk 0:03:00.5]} 6... d6 {[%clk
0:02:58.8]} 7. a4 {[%clk 0:03:00.7]} 7... a5 {[%clk 0:02:57.2]} 8. Nbd2 {[%clk
0:02:59.1]} 8... Be6 {[%clk 0:02:55.4]} 9. c3 {[%clk 0:02:56.7]} 9... h6 {[%clk
0:02:50.2]} 10. Bb3 {[%clk 0:02:51.4]} 10... Re8 {[%clk 0:02:40.1]} 11. Nf1
{[%clk 0:02:46.1]} 11... Rf8 {[%clk 0:02:39.8]} 12. Ng3 {[%clk 0:02:38.5]} 12...
d5 {[%clk 0:02:32]} 13. exd5 {[%clk 0:02:35]} 13... Bxd5 {[%clk 0:02:32.3]} 14.
Nxe5 {[%clk 0:02:31.8]} 14... Nxe5 {[%clk 0:02:25.2]} 15. Rxe5 {[%clk
0:02:32.7]} 15... Bd6 {[%clk 0:02:17]} 16. Re1 {[%clk 0:02:12.9]} 16... Bxb3
{[%clk 0:02:14.8]} 17. Qxb3 {[%clk 0:02:13.8]} 17... Bxg3 {[%clk 0:02:14.7]} 18.
hxg3 {[%clk 0:02:13.4]} 18... Qxd3 {[%clk 0:02:14.8]} 19. Qxb7 {[%clk
0:02:11.3]} 19... c5 {[%clk 0:02:01.8]} 20. Qb5 {[%clk 0:02:00.2]} 20... Qf5
{[%clk 0:01:53.7]} 21. Be3 {[%clk 0:01:55.5]} 21... Rab8 {[%clk 0:01:43.6]} 22.
Qxc5 {[%clk 0:01:54]} 22... Qxc5 {[%clk 0:01:43.2]} 23. Bxc5 {[%clk 0:01:54.9]}
23... Rfc8 {[%clk 0:01:40.8]} 24. Ba3 {[%clk 0:01:44.1]} 24... Nd7 {[%clk
0:01:39.8]} 25. Re3 {[%clk 0:01:14.9]} 25... Nb6 {[%clk 0:01:29.2]} 26. b4
{[%clk 0:00:47.1]} 26... Nxa4 {[%clk 0:01:04.6]} 27. bxa5 {[%clk 0:00:45.1]}
27... Nxc3 {[%clk 0:01:04.3]} 28. Kh2 {[%clk 0:00:29.5]} 28... Ra8 {[%clk
0:00:54.6]} 29. Bb2 {[%clk 0:00:24.5]} 29... Nd5 {[%clk 0:00:52]} 30. Rd3 {[%clk
0:00:20.2]} 30... Rc5 {[%clk 0:00:49.5]} 31. a6 {[%clk 0:00:15.8]} 31... Nb4
{[%clk 0:00:42.6]} 32. Rd4 {[%clk 0:00:15.8]} 32... Nxa6 {[%clk 0:00:39]} 33.
Rg4 {[%clk 0:00:15.5]} 33... g5 {[%clk 0:00:27.8]} 34. Rga4 {[%clk 0:00:15.3]}
34... Rc6 {[%clk 0:00:26.3]} 35. Bd4 {[%clk 0:00:12.6]} 35... Kh7 {[%clk
0:00:24.7]} 36. Be3 {[%clk 0:00:12.6]} 36... Kg6 {[%clk 0:00:23.4]} 37. Ra5
{[%clk 0:00:12.6]} 37... Re6 {[%clk 0:00:20.5]} 38. g4 {[%clk 0:00:12.2]} 38...
h5 {[%clk 0:00:18.9]} 39. gxh5+ {[%clk 0:00:11.8]} 39... Kxh5 {[%clk 0:00:19.8]}
40. Rxg5+ {[%clk 0:00:11.3]} 40... Kh6 {[%clk 0:00:15]} 41. Rg8+ {[%clk
0:00:06.7]} 41... Rxe3 {[%clk 0:00:15]} 42. Rxa8 {[%clk 0:00:06.7]} 42... Re6
{[%clk 0:00:14.6]} 43. R8xa6 {[%clk 0:00:06.6]} 1-0

[Event "*** Titled Tuesday Blitz"]
[Site "Chess.com"]
[Date "2021.03.30"]
[Round "3"]
[White "CheckThis4"]
[Black "Alexsur1981"]
[Result "0-1"]
[WhiteElo "2616"]
[BlackElo "2864"]
[TimeControl "180+1"]
[EndTime "10:28:39 PDT"]
[Termination "Alexsur1981 won by resignation"]

1. e4 {[%clk 0:03:00.9]} 1... c5 {[%clk 0:02:59.5]} 2. Nf3 {[%clk 0:03:00]} 2...
e6 {[%clk 0:02:59.4]} 3. Nc3 {[%clk 0:02:59.3]} 3... Nc6 {[%clk 0:02:58.8]} 4.
Bb5 {[%clk 0:02:58.5]} 4... Nd4 {[%clk 0:02:58.7]} 5. Bc4 {[%clk 0:02:57.8]}
5... Qc7 {[%clk 0:02:56.9]} 6. d3 {[%clk 0:02:54.8]} 6... a6 {[%clk 0:02:55.8]}
7. Nxd4 {[%clk 0:02:50.6]} 7... cxd4 {[%clk 0:02:55.4]} 8. Ne2 {[%clk
0:02:50.8]} 8... b5 {[%clk 0:02:48.8]} 9. Bb3 {[%clk 0:02:50.7]} 9... Bc5 {[%clk
0:02:45.1]} 10. O-O {[%clk 0:02:47.3]} 10... Ne7 {[%clk 0:02:41.9]} 11. c3
{[%clk 0:02:42]} 11... dxc3 {[%clk 0:02:41.1]} 12. bxc3 {[%clk 0:02:38.7]} 12...
d5 {[%clk 0:02:39.6]} 13. d4 {[%clk 0:02:35.8]} 13... Bb6 {[%clk 0:02:38.4]} 14.
Bf4 {[%clk 0:02:29.5]} 14... Qd7 {[%clk 0:02:36.1]} 15. Ng3 {[%clk 0:02:13.9]}
15... O-O {[%clk 0:02:28.5]} 16. e5 {[%clk 0:02:09.9]} 16... a5 {[%clk
0:02:22.9]} 17. Nh5 {[%clk 0:02:05.4]} 17... Kh8 {[%clk 0:01:49.9]} 18. Qg4
{[%clk 0:01:55]} 18... Ng6 {[%clk 0:01:49.8]} 19. Bg5 {[%clk 0:01:45.5]} 19...
Bd8 {[%clk 0:01:49.3]} 20. f4 {[%clk 0:01:40.3]} 20... b4 {[%clk 0:01:44.4]} 21.
cxb4 {[%clk 0:01:33.3]} 21... axb4 {[%clk 0:01:43]} 22. Rad1 {[%clk 0:01:23]}
22... Bxg5 {[%clk 0:01:28.6]} 23. fxg5 {[%clk 0:01:19]} 23... Ba6 {[%clk
0:01:28.2]} 24. Rf2 {[%clk 0:01:13.3]} 24... Bc4 {[%clk 0:01:26]} 25. h4 {[%clk
0:01:08.1]} 25... Ra3 {[%clk 0:01:19.1]} 26. Qg3 {[%clk 0:00:51.4]} 26... Rfa8
{[%clk 0:01:11.5]} 27. Kh2 {[%clk 0:00:41.8]} 27... Kg8 {[%clk 0:01:04.1]} 28.
Rc1 {[%clk 0:00:34.6]} 28... Qe8 {[%clk 0:00:47.4]} 29. Rf3 {[%clk 0:00:31.9]}
29... Bxb3 {[%clk 0:00:45.9]} 30. axb3 {[%clk 0:00:31.4]} 30... Ne7 {[%clk
0:00:45.5]} 31. Rcf1 {[%clk 0:00:30.1]} 31... Nf5 {[%clk 0:00:45.1]} 32. Rxf5
{[%clk 0:00:28.8]} 32... exf5 {[%clk 0:00:46]} 33. Rxf5 {[%clk 0:00:29.2]} 33...
Qe6 {[%clk 0:00:43.1]} 34. Rf4 {[%clk 0:00:25.3]} 34... Ra1 {[%clk 0:00:40.4]}
35. Nf6+ {[%clk 0:00:23.7]} 35... Kh8 {[%clk 0:00:40.1]} 36. Qd3 {[%clk
0:00:19.8]} 36... gxf6 {[%clk 0:00:39.9]} 37. Rxf6 {[%clk 0:00:19.4]} 37... Qe8
{[%clk 0:00:37.3]} 38. Rh6 {[%clk 0:00:19.1]} 38... Qg8 {[%clk 0:00:37.8]} 39.
Qf5 {[%clk 0:00:17.8]} 39... R1a6 {[%clk 0:00:34.8]} 40. e6 {[%clk 0:00:13.5]}
40... Rxe6 {[%clk 0:00:34.2]} 41. Rxe6 {[%clk 0:00:13.3]} 41... fxe6 {[%clk
0:00:35.1]} 42. Qf6+ {[%clk 0:00:11.5]} 42... Qg7 {[%clk 0:00:35.6]} 43. Qxe6
{[%clk 0:00:12.4]} 43... Rd8 {[%clk 0:00:35.5]} 44. g3 {[%clk 0:00:11.5]} 44...
Qd7 {[%clk 0:00:34.4]} 45. Qe5+ {[%clk 0:00:11.2]} 45... Kg8 {[%clk 0:00:34.4]}
46. h5 {[%clk 0:00:11.8]} 46... Re8 {[%clk 0:00:34.2]} 47. Qf6 {[%clk
0:00:10.8]} 47... Qf7 {[%clk 0:00:34.3]} 48. Qd6 {[%clk 0:00:08.2]} 48... Qxh5+
{[%clk 0:00:31.7]} 49. Kg1 {[%clk 0:00:06.3]} 49... Re1+ {[%clk 0:00:31.6]} 0-1